[Event "*** Titled Tuesday Blitz"]
[Site "Chess.com"]
[Date "2018.12.04"]
[Round "4"]
[White "vugarrasulov"]
[Black "Markov_Mikhail"]
[Result "1-0"]
[WhiteElo "2790"]
[BlackElo "2601"]
[TimeControl "180+2"]
[EndTime "13:54:50 PST"]
[Termination "vugarrasulov won by resignation"]

1. e4 {[%clk 0:03:01.9]} 1... c5 {[%clk 0:02:57.2]} 2. Nf3 {[%clk 0:03:02.7]}
2... d6 {[%clk 0:02:57]} 3. d4 {[%clk 0:03:03.9]} 3... cxd4 {[%clk 0:02:57.6]}
4. Nxd4 {[%clk 0:03:05.8]} 4... Nf6 {[%clk 0:02:58.2]} 5. Nc3 {[%clk 0:03:07.4]}
5... a6 {[%clk 0:02:57.8]} 6. Be3 {[%clk 0:03:08.4]} 6... e6 {[%clk 0:02:58.1]}
7. f3 {[%clk 0:03:09.2]} 7... Qc7 {[%clk 0:02:55.7]} 8. g4 {[%clk 0:03:06.6]}
8... b5 {[%clk 0:02:49.1]} 9. g5 {[%clk 0:03:06.9]} 9... Nfd7 {[%clk 0:02:48.4]}
10. Qd2 {[%clk 0:03:03.4]} 10... Nb6 {[%clk 0:02:43.9]} 11. a4 {[%clk
0:02:56.7]} 11... b4 {[%clk 0:02:37.8]} 12. Nd1 {[%clk 0:02:50.9]} 12... d5
{[%clk 0:02:38.3]} 13. Nf2 {[%clk 0:02:45.7]} 13... Bb7 {[%clk 0:02:36.2]} 14.
a5 {[%clk 0:02:42.6]} 14... N6d7 {[%clk 0:02:25.6]} 15. exd5 {[%clk 0:02:16.4]}
15... Bxd5 {[%clk 0:02:24]} 16. c4 {[%clk 0:02:03.3]} 16... bxc3 {[%clk
0:02:17.7]} 17. Qxc3 {[%clk 0:02:00.5]} 17... Qb7 {[%clk 0:02:16.4]} 18. Nd3
{[%clk 0:01:58.8]} 18... Nc6 {[%clk 0:02:08.6]} 19. Nxc6 {[%clk 0:01:57.5]}
19... Bxc6 {[%clk 0:02:09.1]} 20. Be2 {[%clk 0:01:51.2]} 20... Bxf3 {[%clk
0:02:04.9]} 21. Rf1 {[%clk 0:01:52.3]} 21... Bxe2 {[%clk 0:02:01.1]} 22. Kxe2
{[%clk 0:01:54.2]} 22... Rc8 {[%clk 0:01:59]} 23. Qd4 {[%clk 0:01:43.7]} 23...
e5 {[%clk 0:01:24.4]} 24. Nxe5 {[%clk 0:01:32.9]} 24... Qb5+ {[%clk 0:01:25.1]}
25. Nd3 {[%clk 0:01:31.8]} 25... Rc2+ {[%clk 0:01:24.2]} 26. Ke1 {[%clk
0:01:17.4]} 26... Rc4 {[%clk 0:01:23.3]} 27. Qa7 {[%clk 0:01:14.5]} 27... Bb4+
{[%clk 0:01:20.7]} 28. Nxb4 {[%clk 0:01:00.6]} 28... Qxb4+ {[%clk 0:01:21.6]}
29. Kf2 {[%clk 0:01:01.5]} 29... Qxb2+ {[%clk 0:01:20.9]} 30. Kg3 {[%clk
0:01:01.4]} 30... Qe5+ {[%clk 0:01:11.4]} 31. Bf4 {[%clk 0:00:59.2]} 31... Rc3+
{[%clk 0:01:12.8]} 32. Kh4 {[%clk 0:00:53.6]} 32... Qe6 {[%clk 0:00:57.6]} 33.
Rf3 {[%clk 0:00:46.5]} 33... Rxf3 {[%clk 0:00:36.5]} 34. Qa8+ {[%clk 0:00:47.6]}
34... Ke7 {[%clk 0:00:37.9]} 35. Qxf3 {[%clk 0:00:48.6]} 35... h6 {[%clk
0:00:39.3]} 36. gxh6 {[%clk 0:00:39.8]} 36... gxh6 {[%clk 0:00:27]} 37. Rd1
{[%clk 0:00:31.5]} 37... Rc8 {[%clk 0:00:27.4]} 38. Rd6 {[%clk 0:00:22.4]} 38...
Qe1+ {[%clk 0:00:28.5]} 39. Bg3 {[%clk 0:00:23.8]} 39... Rc4+ {[%clk 0:00:29.5]}
40. Kh3 {[%clk 0:00:24]} 40... Qe4 {[%clk 0:00:28.5]} 41. Qxe4+ {[%clk
0:00:24.1]} 41... Rxe4 {[%clk 0:00:30.2]} 42. Rxa6 {[%clk 0:00:25.3]} 42... Ra4
{[%clk 0:00:31.9]} 43. Bd6+ {[%clk 0:00:24]} 43... Ke6 {[%clk 0:00:31.9]} 44.
Bc7+ {[%clk 0:00:25.3]} 44... Kf5 {[%clk 0:00:32.8]} 45. Rxh6 {[%clk 0:00:24.8]}
45... Nf6 {[%clk 0:00:34]} 46. Rh4 {[%clk 0:00:24.8]} 46... Ra3+ {[%clk
0:00:34.9]} 47. Kg2 {[%clk 0:00:26.3]} 47... Ng4 {[%clk 0:00:35.4]} 48. h3
{[%clk 0:00:25.1]} 48... Ne3+ {[%clk 0:00:32]} 49. Kf2 {[%clk 0:00:26.5]} 49...
Nd5 {[%clk 0:00:33.5]} 50. Rh5+ {[%clk 0:00:25.4]} 50... Ke4 {[%clk 0:00:34]}
51. Rh4+ {[%clk 0:00:25.7]} 51... Kf5 {[%clk 0:00:35.2]} 52. Bb6 {[%clk
0:00:27]} 52... Rb3 {[%clk 0:00:33.5]} 53. Bd4 {[%clk 0:00:23.2]} 53... Nf4
{[%clk 0:00:30.8]} 54. a6 {[%clk 0:00:23.1]} 54... Ke4 {[%clk 0:00:22.7]} 55. a7
{[%clk 0:00:21.5]} 55... Ra3 {[%clk 0:00:24.2]} 56. Rh8 {[%clk 0:00:20.9]} 56...
Kxd4 {[%clk 0:00:18.9]} 57. a8=Q {[%clk 0:00:20]} 57... Nxh3+ {[%clk 0:00:17.3]}
58. Ke1 {[%clk 0:00:19]} 58... Rxa8 {[%clk 0:00:17.8]} 59. Rxa8 {[%clk
0:00:20.9]} 59... Nf4 {[%clk 0:00:18.3]} 60. Kf2 {[%clk 0:00:21.9]} 60... Nd5
{[%clk 0:00:19.2]} 61. Kf3 {[%clk 0:00:23.2]} 61... f6 {[%clk 0:00:20.5]} 62.
Rd8 {[%clk 0:00:23.8]} 62... Ke5 {[%clk 0:00:22.4]} 63. Re8+ {[%clk 0:00:25.1]}
63... Kf5 {[%clk 0:00:23.3]} 64. Re1 {[%clk 0:00:25.4]} 64... Nc7 {[%clk
0:00:22.6]} 65. Rd1 {[%clk 0:00:24.9]} 65... Ne6 {[%clk 0:00:23.8]} 66. Rd5+
{[%clk 0:00:25.3]} 66... Kg6 {[%clk 0:00:25.3]} 67. Kg4 {[%clk 0:00:26.4]} 67...
Ng5 {[%clk 0:00:26.5]} 68. Rd8 {[%clk 0:00:26.8]} 68... Nf7 {[%clk 0:00:27.9]}
69. Rg8+ {[%clk 0:00:27.1]} 69... Kh7 {[%clk 0:00:29.5]} 70. Ra8 {[%clk
0:00:28.5]} 70... Kg6 {[%clk 0:00:31.4]} 71. Kf4 {[%clk 0:00:29.9]} 71... Ng5
{[%clk 0:00:32.5]} 72. Rg8+ {[%clk 0:00:29.1]} 72... Kf7 {[%clk 0:00:33.4]} 73.
Rc8 {[%clk 0:00:30.6]} 73... Kg6 {[%clk 0:00:35]} 74. Rc6 {[%clk 0:00:30.9]}
74... Nf7 {[%clk 0:00:35.6]} 75. Rc1 {[%clk 0:00:31.5]} 75... Ng5 {[%clk
0:00:36.9]} 76. Rg1 {[%clk 0:00:32.8]} 76... Kf7 {[%clk 0:00:37.9]} 77. Kf5
{[%clk 0:00:34.2]} 77... Ne6 {[%clk 0:00:39.5]} 78. Ra1 {[%clk 0:00:32.3]} 78...
Ng7+ {[%clk 0:00:41.1]} 79. Ke4 {[%clk 0:00:33.7]} 79... Kg6 {[%clk 0:00:41.6]}
80. Rg1+ {[%clk 0:00:34.8]} 80... Kf7 {[%clk 0:00:42.5]} 81. Kd5 {[%clk
0:00:36.7]} 81... Nf5 {[%clk 0:00:43]} 82. Re1 {[%clk 0:00:36.3]} 82... Ne7+
{[%clk 0:00:43.9]} 83. Kd6 {[%clk 0:00:37.2]} 83... Nf5+ {[%clk 0:00:45.5]} 84.
Kd7 {[%clk 0:00:38.8]} 84... Nd4 {[%clk 0:00:46]} 85. Rd1 {[%clk 0:00:37.9]}
85... Nf5 {[%clk 0:00:46.8]} 86. Ra1 {[%clk 0:00:37.2]} 86... Ne3 {[%clk
0:00:46.8]} 87. Ra3 {[%clk 0:00:37.5]} 87... Nd5 {[%clk 0:00:47.2]} 88. Kd6
{[%clk 0:00:34.4]} 88... Nf4 {[%clk 0:00:48.2]} 89. Ra4 {[%clk 0:00:35.2]} 89...
Ng6 {[%clk 0:00:48.9]} 90. Ra7+ {[%clk 0:00:36]} 90... Ke8 {[%clk 0:00:43]} 91.
Ke6 {[%clk 0:00:37.9]} 91... Nf4+ {[%clk 0:00:44.1]} 92. Kxf6 {[%clk 0:00:38.8]}
92... Nd5+ {[%clk 0:00:45.7]} 93. Ke5 {[%clk 0:00:38.6]} 93... Ne3 {[%clk
0:00:46.4]} 94. Ra4 {[%clk 0:00:37.3]} 94... Kd7 {[%clk 0:00:41.9]} 95. Re4
{[%clk 0:00:38.2]} 95... Nc2 {[%clk 0:00:41.3]} 96. Kd5 {[%clk 0:00:37.4]} 96...
Na3 {[%clk 0:00:41.3]} 97. Kc5 {[%clk 0:00:35.4]} 97... Nc2 {[%clk 0:00:41.8]}
98. Re2 {[%clk 0:00:36.5]} 98... Na3 {[%clk 0:00:41.4]} 99. Ra2 {[%clk
0:00:37.1]} 99... Nb1 {[%clk 0:00:29.5]} 100. Kd4 {[%clk 0:00:35.6]} 100... Kc6
{[%clk 0:00:30.7]} 101. Kd3 {[%clk 0:00:35.8]} 101... Kc5 {[%clk 0:00:31.8]}
102. Ra1 {[%clk 0:00:35.5]} 1-0

[Event "*** Titled Tuesday Blitz"]
[Site "Chess.com"]
[Date "2018.12.04"]
[Round "5"]
[White "lucasmito"]
[Black "m3alam"]
[Result "1-0"]
[WhiteElo "2354"]
[BlackElo "2167"]
[TimeControl "180+2"]
[EndTime "14:01:23 PST"]
[Termination "lucasmito won by resignation"]

1. e4 {[%clk 0:03:01.9]} 1... c6 {[%clk 0:03:01.8]} 2. d4 {[%clk 0:03:02.8]}
2... d5 {[%clk 0:03:03.7]} 3. Nc3 {[%clk 0:03:04.7]} 3... dxe4 {[%clk
0:03:04.4]} 4. Nxe4 {[%clk 0:03:06.5]} 4... Bf5 {[%clk 0:03:06.3]} 5. Ng3 {[%clk
0:03:07.8]} 5... Bg6 {[%clk 0:03:07.6]} 6. h4 {[%clk 0:03:09.7]} 6... h6 {[%clk
0:03:07.3]} 7. h5 {[%clk 0:03:11.6]} 7... Bh7 {[%clk 0:03:07.7]} 8. Nf3 {[%clk
0:03:13.5]} 8... e6 {[%clk 0:03:06.9]} 9. Bd3 {[%clk 0:03:15.4]} 9... Bxd3
{[%clk 0:03:06.7]} 10. Qxd3 {[%clk 0:03:17.3]} 10... Nf6 {[%clk 0:03:07.7]} 11.
Bd2 {[%clk 0:03:19.2]} 11... Bd6 {[%clk 0:03:08.4]} 12. O-O-O {[%clk 0:03:20.5]}
12... Qc7 {[%clk 0:03:09]} 13. Ne4 {[%clk 0:03:20.7]} 13... Nxe4 {[%clk
0:03:09.4]} 14. Qxe4 {[%clk 0:03:22.6]} 14... Nd7 {[%clk 0:03:09.6]} 15. Kb1
{[%clk 0:03:23.7]} 15... c5 {[%clk 0:03:03.5]} 16. c4 {[%clk 0:03:19.2]} 16...
cxd4 {[%clk 0:02:56.6]} 17. Nxd4 {[%clk 0:03:12.8]} 17... a6 {[%clk 0:02:51.8]}
18. Bc3 {[%clk 0:03:11.3]} 18... Nf6 {[%clk 0:02:46]} 19. Nxe6 {[%clk
0:02:41.9]} 19... Nxe4 {[%clk 0:02:40.6]} 20. Nxc7+ {[%clk 0:02:42.7]} 20...
Bxc7 {[%clk 0:02:41.1]} 21. Rhe1 {[%clk 0:02:44.2]} 1-0

[Event "*** Titled Tuesday Blitz"]
[Site "Chess.com"]
[Date "2018.12.04"]
[Round "5"]
[White "Koksik_13"]
[Black "GMMatamoros"]
[Result "1-0"]
[WhiteElo "2731"]
[BlackElo "2500"]
[TimeControl "180+2"]
[EndTime "14:01:42 PST"]
[Termination "Koksik_13 won by checkmate"]

1. e4 {[%clk 0:02:59.8]} 1... c5 {[%clk 0:03:00.3]} 2. Nf3 {[%clk 0:03:00.6]}
2... Nc6 {[%clk 0:03:01.4]} 3. c3 {[%clk 0:03:01.6]} 3... d5 {[%clk 0:02:59]} 4.
exd5 {[%clk 0:03:02.6]} 4... Qxd5 {[%clk 0:03:00.9]} 5. d4 {[%clk 0:03:04.3]}
5... Bg4 {[%clk 0:03:02]} 6. Be2 {[%clk 0:03:05.4]} 6... cxd4 {[%clk 0:03:02.1]}
7. O-O {[%clk 0:03:05.9]} 7... e6 {[%clk 0:03:01.2]} 8. Nxd4 {[%clk 0:03:06]}
8... Bxe2 {[%clk 0:03:00.2]} 9. Qxe2 {[%clk 0:03:06.8]} 9... Nxd4 {[%clk
0:03:01]} 10. cxd4 {[%clk 0:03:08.1]} 10... Nf6 {[%clk 0:02:51.3]} 11. Nc3
{[%clk 0:03:09]} 11... Qd7 {[%clk 0:02:52.1]} 12. Rd1 {[%clk 0:03:05.5]} 12...
Nd5 {[%clk 0:02:49.3]} 13. Ne4 {[%clk 0:02:54.6]} 13... Be7 {[%clk 0:02:43.4]}
14. Qg4 {[%clk 0:02:55.2]} 14... g6 {[%clk 0:02:11.7]} 15. Qg3 {[%clk
0:02:51.9]} 15... O-O {[%clk 0:02:09.6]} 16. Bg5 {[%clk 0:02:49.4]} 16... Rfc8
{[%clk 0:02:02.5]} 17. h4 {[%clk 0:02:49.1]} 17... Rc2 {[%clk 0:01:50.7]} 18. h5
{[%clk 0:02:47.7]} 18... Rac8 {[%clk 0:01:48.9]} 19. h6 {[%clk 0:02:44.5]} 19...
Re2 {[%clk 0:01:40.9]} 20. Bxe7 {[%clk 0:02:42]} 20... Qxe7 {[%clk 0:01:39.3]}
21. Qe5 {[%clk 0:02:41.7]} 21... Rxe4 {[%clk 0:01:25.5]} 22. Qg7# {[%clk
0:02:42]} 1-0

[Event "*** Titled Tuesday Blitz"]
[Site "Chess.com"]
[Date "2018.12.04"]
[Round "5"]
[White "Msb2"]
[Black "joppie2"]
[Result "1-0"]
[WhiteElo "2749"]
[BlackElo "2718"]
[TimeControl "180+2"]
[EndTime "14:01:45 PST"]
[Termination "Msb2 won by resignation"]

1. d4 {[%clk 0:03:01.9]} 1... d5 {[%clk 0:03:01]} 2. Nf3 {[%clk 0:03:03.1]} 2...
Nf6 {[%clk 0:03:01.6]} 3. g3 {[%clk 0:03:04.6]} 3... g6 {[%clk 0:03:01.6]} 4.
Bg2 {[%clk 0:03:05.7]} 4... Bg7 {[%clk 0:03:03.2]} 5. O-O {[%clk 0:03:07.4]}
5... O-O {[%clk 0:03:04.3]} 6. c4 {[%clk 0:03:09]} 6... c6 {[%clk 0:03:05.8]} 7.
Qb3 {[%clk 0:03:10]} 7... Na6 {[%clk 0:03:03.5]} 8. Nc3 {[%clk 0:03:10.1]} 8...
Nc7 {[%clk 0:03:03.8]} 9. Bf4 {[%clk 0:03:09]} 9... Ne6 {[%clk 0:03:01.9]} 10.
Be5 {[%clk 0:03:08.8]} 10... dxc4 {[%clk 0:02:56.2]} 11. Qxc4 {[%clk 0:03:10.7]}
11... Bd7 {[%clk 0:02:52.3]} 12. e4 {[%clk 0:03:06.1]} 12... Rc8 {[%clk
0:02:52.3]} 13. Qe2 {[%clk 0:03:05.6]} 13... Qb6 {[%clk 0:02:52.3]} 14. Rac1
{[%clk 0:02:59.5]} 14... Rfd8 {[%clk 0:02:50.3]} 15. Rfd1 {[%clk 0:03:00.5]}
15... Be8 {[%clk 0:02:51.2]} 16. h3 {[%clk 0:03:00.8]} 16... Nd7 {[%clk
0:02:44.3]} 17. Bxg7 {[%clk 0:03:00.5]} 17... Kxg7 {[%clk 0:02:46.2]} 18. d5
{[%clk 0:02:53.6]} 18... cxd5 {[%clk 0:02:46.7]} 19. Nxd5 {[%clk 0:02:54.9]}
19... Qa5 {[%clk 0:02:36.3]} 20. Rxc8 {[%clk 0:02:48.2]} 20... Rxc8 {[%clk
0:02:35.4]} 21. Nxe7 {[%clk 0:02:49.8]} 21... Rc5 {[%clk 0:02:29.9]} 22. a3
{[%clk 0:02:49.4]} 22... Qa4 {[%clk 0:02:28.2]} 23. Nd5 {[%clk 0:02:41.6]} 23...
Rc2 {[%clk 0:02:27.6]} 24. Rd2 {[%clk 0:02:43]} 24... Rc1+ {[%clk 0:02:27.4]}
25. Kh2 {[%clk 0:02:43.8]} 25... h5 {[%clk 0:02:25.3]} 26. Qe3 {[%clk
0:02:40.4]} 26... Rc2 {[%clk 0:02:19.5]} 27. b3 {[%clk 0:02:35.7]} 27... Qc6
{[%clk 0:02:19.2]} 28. Nb4 {[%clk 0:02:37]} 1-0

[Event "*** Titled Tuesday Blitz"]
[Site "Chess.com"]
[Date "2018.12.04"]
[Round "5"]
[White "Raffael89"]
[Black "Chessmatus"]
[Result "0-1"]
[WhiteElo "2116"]
[BlackElo "2179"]
[TimeControl "180+2"]
[EndTime "14:01:52 PST"]
[Termination "Chessmatus won by resignation"]

1. e4 {[%clk 0:03:01.9]} 1... c5 {[%clk 0:03:00.7]} 2. Nf3 {[%clk 0:03:00.7]}
2... d6 {[%clk 0:03:01.8]} 3. d4 {[%clk 0:03:01.2]} 3... cxd4 {[%clk 0:03:02.9]}
4. Qxd4 {[%clk 0:03:02.8]} 4... Nc6 {[%clk 0:03:03.3]} 5. Bb5 {[%clk 0:03:02.9]}
5... a6 {[%clk 0:03:04.6]} 6. Bxc6+ {[%clk 0:03:03.3]} 6... bxc6 {[%clk
0:03:06]} 7. c4 {[%clk 0:03:04.1]} 7... e5 {[%clk 0:03:06.9]} 8. Qd3 {[%clk
0:03:04.6]} 8... Ne7 {[%clk 0:03:08.1]} 9. h3 {[%clk 0:03:03.2]} 9... Ng6 {[%clk
0:03:08.9]} 10. O-O {[%clk 0:03:04]} 10... Be6 {[%clk 0:03:06.6]} 11. Rd1 {[%clk
0:03:02.7]} 11... Be7 {[%clk 0:03:03.1]} 12. Nc3 {[%clk 0:03:00.7]} 12... O-O
{[%clk 0:03:00.7]} 13. Be3 {[%clk 0:02:55]} 13... h6 {[%clk 0:03:00.1]} 14. b3
{[%clk 0:02:55.5]} 14... Qc7 {[%clk 0:02:59.4]} 15. Rd2 {[%clk 0:02:55.5]} 15...
Rad8 {[%clk 0:02:58.2]} 16. Rad1 {[%clk 0:02:56.9]} 16... f5 {[%clk 0:02:57.2]}
17. exf5 {[%clk 0:02:44.9]} 17... Bxf5 {[%clk 0:02:57.9]} 18. Qe2 {[%clk
0:02:44]} 18... Rf7 {[%clk 0:02:43.4]} 19. Na4 {[%clk 0:02:38.9]} 19... Rdf8
{[%clk 0:02:43.9]} 20. Bb6 {[%clk 0:02:26.4]} 20... Qc8 {[%clk 0:02:41.5]} 21.
c5 {[%clk 0:02:21.1]} 21... Nf4 {[%clk 0:02:40.1]} 22. Qe3 {[%clk 0:02:16.4]}
22... Bxh3 {[%clk 0:02:23.3]} 23. cxd6 {[%clk 0:02:16.5]} 23... Nxg2 {[%clk
0:02:14.7]} 24. Nxe5 {[%clk 0:02:06.5]} 24... Nxe3 {[%clk 0:02:11.9]} 0-1

[Event "*** Titled Tuesday Blitz"]
[Site "Chess.com"]
[Date "2018.12.04"]
[Round "5"]
[White "narutosmith"]
[Black "Iyael"]
[Result "1-0"]
[WhiteElo "2226"]
[BlackElo "2120"]
[TimeControl "180+2"]
[EndTime "14:02:34 PST"]
[Termination "narutosmith won by resignation"]

1. e4 {[%clk 0:02:59.6]} 1... c5 {[%clk 0:03:00]} 2. Nc3 {[%clk 0:03:00.2]} 2...
Nc6 {[%clk 0:03:00.1]} 3. Bb5 {[%clk 0:03:01]} 3... e6 {[%clk 0:02:59.8]} 4.
Bxc6 {[%clk 0:02:59.5]} 4... bxc6 {[%clk 0:02:59.7]} 5. f4 {[%clk 0:03:00.5]}
5... f6 {[%clk 0:02:59.9]} 6. Nf3 {[%clk 0:03:00.9]} 6... Ne7 {[%clk 0:03:00.9]}
7. O-O {[%clk 0:03:00.8]} 7... Ng6 {[%clk 0:03:01.7]} 8. d3 {[%clk 0:02:57.5]}
8... Be7 {[%clk 0:02:59.7]} 9. f5 {[%clk 0:02:55.9]} 9... Nf8 {[%clk 0:02:43.6]}
10. Nh4 {[%clk 0:02:56.5]} 10... Qb6 {[%clk 0:02:37.3]} 11. Qh5+ {[%clk
0:02:52.4]} 11... Kd8 {[%clk 0:02:35.5]} 12. Qf7 {[%clk 0:02:53.1]} 12... g6
{[%clk 0:02:33]} 13. Qg7 {[%clk 0:02:50.4]} 13... c4+ {[%clk 0:02:21.3]} 14. Kh1
{[%clk 0:02:49.7]} 14... cxd3 {[%clk 0:02:22.1]} 15. cxd3 {[%clk 0:02:47.6]}
15... Ba6 {[%clk 0:02:22.4]} 16. Qxh8 {[%clk 0:02:41.7]} 16... Bxd3 {[%clk
0:02:21.9]} 17. Rd1 {[%clk 0:02:30.2]} 17... Qf2 {[%clk 0:02:20.6]} 18. Nf3
{[%clk 0:02:12.8]} 18... Be2 {[%clk 0:02:18.7]} 19. Nxe2 {[%clk 0:02:10.3]}
19... Qxe2 {[%clk 0:02:19.4]} 20. Re1 {[%clk 0:02:10.1]} 20... Qc2 {[%clk
0:02:17.2]} 21. fxe6 {[%clk 0:02:03]} 21... dxe6 {[%clk 0:02:13.4]} 22. Bh6
{[%clk 0:02:02.4]} 22... Kc7 {[%clk 0:02:12.8]} 23. Qg7 {[%clk 0:01:59.9]} 23...
Qc5 {[%clk 0:02:04.7]} 24. Rac1 {[%clk 0:01:52]} 1-0

[Event "*** Titled Tuesday Blitz"]
[Site "Chess.com"]
[Date "2018.12.04"]
[Round "5"]
[White "NemtsevIgor"]
[Black "Gubajdullin"]
[Result "0-1"]
[WhiteElo "2333"]
[BlackElo "2448"]
[TimeControl "180+2"]
[EndTime "14:02:36 PST"]
[Termination "Gubajdullin won by resignation"]

1. d4 {[%clk 0:03:01.9]} 1... g6 {[%clk 0:02:59.3]} 2. Bf4 {[%clk 0:03:02]} 2...
Bg7 {[%clk 0:02:59.8]} 3. Nf3 {[%clk 0:03:03.2]} 3... Nf6 {[%clk 0:02:58.5]} 4.
Nc3 {[%clk 0:02:58.9]} 4... O-O {[%clk 0:02:57.9]} 5. Qd2 {[%clk 0:02:59.1]}
5... c5 {[%clk 0:02:56.9]} 6. d5 {[%clk 0:02:52.2]} 6... Qb6 {[%clk 0:02:48.6]}
7. Bh6 {[%clk 0:02:43.1]} 7... Bxh6 {[%clk 0:02:39.6]} 8. Qxh6 {[%clk
0:02:42.8]} 8... Qxb2 {[%clk 0:02:40]} 9. Kd2 {[%clk 0:02:33.9]} 9... Qxa1
{[%clk 0:02:38]} 10. e4 {[%clk 0:02:34.8]} 10... d6 {[%clk 0:01:52.4]} 11. h4
{[%clk 0:02:20.4]} 11... Bg4 {[%clk 0:01:46.5]} 12. Ng5 {[%clk 0:02:07.1]} 12...
Nbd7 {[%clk 0:01:20.9]} 13. f3 {[%clk 0:01:51.9]} 13... Ne5 {[%clk 0:01:19.7]}
14. Be2 {[%clk 0:01:52.1]} 14... Qxh1 {[%clk 0:01:18.2]} 15. fxg4 {[%clk
0:01:51.3]} 15... Qxg2 {[%clk 0:01:14.7]} 16. h5 {[%clk 0:01:45.8]} 16... Nexg4
{[%clk 0:01:14.6]} 0-1

[Event "*** Titled Tuesday Blitz"]
[Site "Chess.com"]
[Date "2018.12.04"]
[Round "5"]
[White "BillForster"]
[Black "JSMastropiero"]
[Result "0-1"]
[WhiteElo "1719"]
[BlackElo "2167"]
[TimeControl "180+2"]
[EndTime "14:02:48 PST"]
[Termination "JSMastropiero won by resignation"]

1. d4 {[%clk 0:03:01.9]} 1... Nf6 {[%clk 0:02:57.1]} 2. c4 {[%clk 0:03:02.3]}
2... g6 {[%clk 0:02:57.9]} 3. Nc3 {[%clk 0:03:02.9]} 3... Bg7 {[%clk 0:02:58.7]}
4. e4 {[%clk 0:03:03.4]} 4... d6 {[%clk 0:02:59.8]} 5. Bd3 {[%clk 0:03:02.2]}
5... O-O {[%clk 0:03:00.4]} 6. Nge2 {[%clk 0:03:01.9]} 6... Nc6 {[%clk
0:03:00.4]} 7. d5 {[%clk 0:02:56.6]} 7... Ne5 {[%clk 0:02:58.8]} 8. Bc2 {[%clk
0:02:56]} 8... Nxc4 {[%clk 0:02:57.2]} 9. O-O {[%clk 0:02:51.9]} 9... c6 {[%clk
0:02:54.1]} 10. b3 {[%clk 0:02:34]} 10... Nb6 {[%clk 0:02:50.7]} 11. Bb2 {[%clk
0:02:22.4]} 11... cxd5 {[%clk 0:02:48.7]} 12. Nxd5 {[%clk 0:02:21.8]} 12...
Nbxd5 {[%clk 0:02:38.5]} 13. exd5 {[%clk 0:02:18.7]} 13... Qa5 {[%clk
0:02:35.5]} 14. Nf4 {[%clk 0:02:00.3]} 14... Bd7 {[%clk 0:02:32.7]} 15. Qf3
{[%clk 0:01:53.3]} 15... Rac8 {[%clk 0:02:30.5]} 16. Rac1 {[%clk 0:01:49.4]}
16... Rfe8 {[%clk 0:02:28.5]} 17. Rfd1 {[%clk 0:01:39.5]} 17... Bg4 {[%clk
0:02:24.7]} 18. Bxf6 {[%clk 0:00:46.8]} 18... Bxf3 {[%clk 0:02:21.6]} 19. Bxg7
{[%clk 0:00:42.9]} 19... Bxd1 {[%clk 0:02:20.4]} 0-1

[Event "*** Titled Tuesday Blitz"]
[Site "Chess.com"]
[Date "2018.12.04"]
[Round "5"]
[White "MikaelyanArman"]
[Black "vinniethepooh"]
[Result "1-0"]
[WhiteElo "2761"]
[BlackElo "2409"]
[TimeControl "180+2"]
[EndTime "14:03:05 PST"]
[Termination "MikaelyanArman won by resignation"]

1. e4 {[%clk 0:03:01.9]} 1... c5 {[%clk 0:03:00.4]} 2. Nf3 {[%clk 0:03:03.1]}
2... d6 {[%clk 0:03:01.7]} 3. d4 {[%clk 0:03:04.6]} 3... cxd4 {[%clk 0:03:03.6]}
4. Nxd4 {[%clk 0:03:06.5]} 4... Nf6 {[%clk 0:03:05.3]} 5. Nc3 {[%clk 0:03:08]}
5... a6 {[%clk 0:03:06.9]} 6. Bc4 {[%clk 0:03:09.1]} 6... e6 {[%clk 0:03:07.8]}
7. O-O {[%clk 0:03:09.6]} 7... Nbd7 {[%clk 0:02:57.6]} 8. Bxe6 {[%clk
0:03:08.9]} 8... fxe6 {[%clk 0:02:45.9]} 9. Nxe6 {[%clk 0:03:10.8]} 9... Qa5
{[%clk 0:02:34.1]} 10. Bd2 {[%clk 0:03:11.8]} 10... Qb6 {[%clk 0:02:10.5]} 11.
Be3 {[%clk 0:03:04]} 11... Nc5 {[%clk 0:02:08.9]} 12. Nxf8 {[%clk 0:02:55.9]}
12... Rxf8 {[%clk 0:02:05.3]} 13. e5 {[%clk 0:02:57.1]} 13... Nfd7 {[%clk
0:01:47.9]} 14. exd6 {[%clk 0:02:53]} 14... Qc6 {[%clk 0:01:20.9]} 15. Re1
{[%clk 0:02:53.6]} 15... Kf7 {[%clk 0:01:18.3]} 16. Qh5+ {[%clk 0:02:44.2]}
16... Kg8 {[%clk 0:01:18.2]} 17. Rad1 {[%clk 0:02:44.8]} 17... Kh8 {[%clk
0:00:51.1]} 18. Bd4 {[%clk 0:02:43.2]} 18... b6 {[%clk 0:00:31.6]} 19. Bxg7+
{[%clk 0:02:40.5]} 19... Kg8 {[%clk 0:00:29.1]} 20. Bxf8 {[%clk 0:02:39.3]}
20... Nxf8 {[%clk 0:00:29.9]} 21. Re7 {[%clk 0:02:34.3]} 21... Bb7 {[%clk
0:00:23.1]} 22. Qf7+ {[%clk 0:02:32.5]} 1-0